Cogmind - Beta 14 @@@ ROGUE MODE // 2025.03.03 @ 19:07:03 Player: toydarian Result: Destroyed by G-34 Mercenary with Small Laser Performance ------------- Evolutions (0) 0 Regions Visited (1) 200 Robots Destroyed (18) 90 Value Destroyed (323) 323 Prototype IDs (0) 0 Alien Tech Used (0) 0 Bonus (0) 0 TOTAL SCORE: 613 Bonus ------- None Cogmind --------- Core Integrity 0/250 Matter 254/300 Energy 100/100 System Corruption 0% Temperature Cool (6) Movement Treading (320) Ox2 Location -10/Materials Parts ------- > --- POWER (1) -------- (None) > --- PROPULSION (2) --- Light Treads Light Treads > --- UTILITY (2) ------ High-capacity Storage Unit > --- WEAPON (2) ------- Light Assault Rifle Light Assault Rifle > --- INVENTORY (20) --- Wheel Wheel Wheel Large Matter Pod (146) Light Assault Rifle Light Assault Rifle Mining Claw Peak State ------------ > --- POWER ------------ Ion Engine > --- PROPULSION ------- Compact Wheel Compact Wheel > --- UTILITY ---------- High-capacity Storage Unit Seismic Detector > --- WEAPON ----------- Assault Rifle Light Assault Rifle > --- INVENTORY -------- Ion Engine Light Treads Light Treads Wheel Wheel Wheel Compact Wheel Large Matter Pod Light Assault Rifle Mining Claw [Rating: 8] Favorites ----------- Power Ion Engine Engine Ion Engine Propulsion Compact Wheel Treads Light Treads Wheel Compact Wheel Utility High-capacity Storage Unit Device Seismic Detector Storage High-capacity Storage Unit Weapon Light Assault Rifle Ballistic Gun Light Assault Rifle Build | -11 -10 ------- Run | Yrd Mat Slots Evolved . | . . Power . | . . Propulsion . | . . Utility . | . . Weapon . | . . Parts Attached 17 | 7 10 Power 2 | 1 1 Engine 2 | 1 1 Core . | . . Reactor . | . . Propulsion 8 | 2 6 Treads 4 | . 4 Leg . | . . Wheel 4 | 2 2 Hover . | . . Flight . | . . Utility 3 | 2 1 Device 1 | 1 . Storage 2 | 1 1 Processor . | . . Hackware . | . . Protection . | . . Artifact . | . . Weapon 4 | 2 2 Energy Gun . | . . Energy Cannon . | . . Ballistic Gun 4 | 2 2 Ballistic Cannon . | . . Launcher . | . . Special Weapon . | . . Impact Weapon . | . . Slashing Weapon . | . . Piercing Weapon . | . . Special Melee Weapon . | . . Unidentified Prototypes . | . . Parts Lost 8 | . 8 Power 2 | . 2 Propulsion 3 | . 3 Utility 1 | . 1 Weapon 2 | . 2 Highest Loss Streak 6 | . 6 To Critical Strikes . | . . Average Slot Usage (%) 91 | . 91 Engine 12 | . 12 Treads 3 | . 3 Wheel 23 | . 23 Device 9 | . 9 Storage 14 | . 14 Ballistic Gun 26 | . 26 Peak Build Rating 8 | 7 8 Average Rating 6 | 6 6 On Entrance 3 | . 7 Naked Turns . | . . Heaviest Build 49 | 14 49 Greatest Support 32 | 32 32 Greatest Overweight (x) 1 | . 1 Average Overweight (x) . | . . Largest Inventory Capacity 20 | 8 20 Average Capacity 16 | 7 19 Most Carried 10 | 8 10 Average Carried 7 | 5 8 Final Capacity 20 | 8 20 Final Carried 8 | 8 7 Class Distribution -------------------- 100% | Mutant Dominant Class ---------------- Mutant | -10/Materials Resources | -11 -10 ----------- Run | Yrd Mat Matter Collected 656 | 340 316 Remotely . | . . Salvage Created 572 | 117 455 Parts 37 | 10 27 Haulers Intercepted . | . . Recyclers Shooed 2 | . 2 Parts Field Recycled . | . . Retrieved Matter . | . . Parts Self-Destructed . | . . Prevented . | . . Kills | -11 -10 ------- Run | Yrd Mat Combat Hostiles Destroyed 12 | . 12 Guns 12 | . 12 Classes Destroyed 5 | 3 2 Worker 3 | 2 1 Tunneler 1 | 1 . Recycler 2 | 1 1 Swarmer 5 | . 5 Grunt 7 | . 7 Best Kill Streak 6 | 2 6 Combat Bots Only 4 | . 4 Max Kills in Single Turn 1 | 1 1 Gunslinging . | . . Exploded . | . . Melee . | . . Uniques/NPCs Destroyed . | . . Combat | -11 -10 -------- Run | Yrd Mat Hostile Shots Fired 127 | . 127 Missed 27 | . 27 Damage Taken 1097 | . 1097 Core 260 | . 260 Absorbed by Shields . | . . Core Remaining (%) 100 | 100 . Volleys Fired 66 | 6 60 Largest 2 | 2 2 Hottest 40 | 40 40 Shots Fired 116 | 12 104 Gun 116 | 12 104 Cannon . | . . Launcher . | . . Special . | . . Kinetic 116 | 12 104 Thermal . | . . Explosive . | . . Electromagnetic . | . . Robot Hit Streak 12 | 5 12 Robot Miss Streak 4 | 1 4 Penetration Max . | . . Secondary Targets 3 | . 3 Max Gunslinging Chain 1 | . 1 Shots Hit Robots 74 | 8 66 Core Hits 32 | 6 26 Critical Kills 1 | . 1 Critical Parts Destroyed . | . . Critical Strikes 1 | . 1 Destroy 1 | . 1 Melee Attacks . | . . Impact . | . . Slashing . | . . Piercing . | . . Sneak Attacks . | . . Combat Hostiles . | . . Follow-up Attacks . | . . Damage Inflicted 767 | 79 688 Guns 767 | 79 688 Cannons . | . . Explosions . | . . Melee . | . . Ramming . | . . Kinetic 767 | 79 688 Thermal . | . . Explosive . | . . Electromagnetic . | . . Impact . | . . Slashing . | . . Piercing . | . . Highest Corruption . | . . Average Corruption . | . . Corruption Purged . | . . Corruption Blocked . | . . Overload Shots . | . . Overflow Damage . | . . Projectiles . | . . Explosions . | . . Melee . | . . Knockbacks . | . . Impact . | . . Kinetic . | . . Secondary . | . . Self-Inflicted Damage . | . . Shots . | . . Rammed . | . . Targets Rammed . | . . Kicked . | . . Crushed . | . . Highest Temperature 34 | . 34 Average Temperature 8 | . 8 Received Heat Transfer 540 | . 540 Siege Activations . | . . Robots Corrupted . | . . Combat Hostiles . | . . Parts Fried . | . . Impact Corruptions . | . . Robots Melted . | . . Combat Hostiles . | . . Parts Melted . | . . Heat Transferred . | . . Parts Sabotaged . | . . Parts Stolen . | . . Parts Stripped . | . . Power Chain Reactions . | . . Alert | -11 -10 ------- Run | Yrd Mat Peak Influence 205 | 20 205 Initial 13 | . 13 Average 60 | 10 77 Maximum Alert Level 1 | . 1 Low Security (%) 98 | 100 98 Level 1 1 | . 1 Level 2 . | . . Level 3 . | . . Level 4 . | . . Level 5 . | . . High Security . | . . Max Security . | . . Squads Dispatched 2 | . 2 Investigation 1 | . 1 Extermination . | . . Reinforcement 1 | . 1 Assault . | . . Garrison . | . . Intercept . | . . Searches Triggered . | . . Construction Impeded . | . . Haulers Reinforced . | . . Active Scanning Responses . | . . Cargo Convoy Interrupts . | . . Stealth | -11 -10 --------- Run | Yrd Mat Distress Signals 7 | . 7 Communications Jammed . | . . Distress Signals . | . . Times Spotted 19 | . 19 Peak Tracking Total 8 | . 8 Tactical Retreats 1 | . 1 Traps | -11 -10 ------- Run | Yrd Mat Traps Triggered 1 | . 1 Indirectly . | . . Trap Hack Attempts . | . . Triggered . | . . Disarmed . | . . Reprogrammed . | . . Reused . | . . Traps Extracted . | . . Installed . | . . Triggered . | . . Machines | -11 -10 ---------- Run | Yrd Mat Machines Disabled . | . . Max in Single Turn . | . . Machines Repaired . | . . Machines Dismantled . | . . Machines Sabotaged . | . . Overloaded Fab Kills . | . . Hacking | -11 -10 --------- Run | Yrd Mat Machines Accessed 3 | . 3 Terminals 3 | . 3 Fabricators . | . . Repair Stations . | . . Recycling Units . | . . Scanalyzers . | . . Garrison Access . | . . Total Hacks 10 | . 10 Successful 4 | . 4 Failed 6 | . 6 Catastrophic 1 | . 1 Database Lockouts . | . . Manual 10 | . 10 Terminals 10 | . 10 Fabricators . | . . Repair Stations . | . . Recycling Units . | . . Scanalyzers . | . . Garrison Access . | . . Terminal Hacks 1 | . 1 Recall Investigation 1 | . 1 Fabricator Hacks . | . . Repair Station Hacks . | . . Recycling Unit Hacks . | . . Scanalyzer . | . . Garrison Access Hacks . | . . Unauthorized Hacks 3 | . 3 Terminals 3 | . 3 Botnet 3 | . 3 Fabricators . | . . Repair Stations . | . . Recycling Units . | . . Scanalyzers . | . . Garrison Access . | . . Data Cores Recovered . | . . Used . | . . Hacking Detections 2 | . 2 Full Trace Events . | . . Feedback Events . | . . Feedback Blocked . | . . Robot Schematics Acquired . | . . Robots Built . | . . Authchips . | . . Time . | . . Total Robot Build Rating . | . . Part Schematics Acquired . | . . Parts Built . | . . Authchips . | . . Time . | . . Total Part Build Rating . | . . Parts Repaired . | . . Time . | . . Parts Recycled . | . . Recycled Matter . | . . Retrieved Matter . | . . Retrieved Components . | . . Parts Scanalyzed . | . . Part Schematics Acquired . | . . Parts Damaged . | . . Bothacking | -11 -10 ------------ Run | Yrd Mat Used RIF Installer . | . . Robots Hacked . | . . Non-combat . | . . Combat . | . . Robot Hacks Applied . | . . Relay Couplers Released . | . . Fabnet Peak Effective % . | . . Robots Rewired . | . . Allies Hacked . | . . Hacks Repelled . | . . Allies | -11 -10 -------- Run | Yrd Mat Total Allies . | . . Largest Group . | . . Highest-Rated Group . | . . Highest-Rated Ally . | . . Total Orders . | . . Ally Attacks . | . . Total Damage . | . . Kills . | . . Allies Corrupted . | . . Allies Melted . | . . Intel | -11 -10 ------- Run | Yrd Mat Robot Analysis Total . | . . Derelict Logs Recovered . | . . Drone Launches . | . . Drone Recoveries . | . . Exploration | -11 -10 ------------- Run | Yrd Mat Turns Passed 622 | 161 461 Spaces Moved 340 | 126 214 Core 2 | 2 . Treads . | . . Legs . | . . Wheels 338 | 124 214 Hover . | . . Flight . | . . Fastest Speed 50 | 50 100 Average Speed 107 | 99 111 Slowest Speed 115 | 100 115 Overloaded Moves . | . . Propulsion Burnouts . | . . Robots Hopped . | . . Cave-ins Triggered . | . . Exploration Rate (%) 21 | 6 36 Regions Visited 1 Branch Regions . Pre-discovered Areas . | . . Known Exits Taken . | . . Unknown Exits Taken 1 | 1 . Scrap Searched . | . . Spaces Dug . | . . Terrain Destroyed . | . . Melee . | . . Projectile . | . . AOE . | . . Terrain Rammed . | . . Walls Destroyed . | . . Machines Disabled . | . . Actions | -11 -10 --------- Run | Yrd Mat Total 497 | 148 349 Wait 58 | . 58 Move 339 | 125 214 Hop . | . . Pick Up 14 | 9 5 Fast Attach 8 | 7 1 Attach 5 | . 5 Detach . | . . Swap 4 | . 4 Drop 3 | 1 2 Fire 66 | 6 60 Melee . | . . Ram . | . . Kick . | . . Crush . | . . Escape Stasis . | . . Rewire . | . . Trap . | . . Miscellaneous . | . . Route ------- -11/Scrapyard -10/Materials (discovered 1 exit: [*Min]) History --------- Turn | Location | Event 10 | -11/Scrapyard | Discovered new exit (range 16) 162 | -11/Scrapyard | Entered Materials 310 | -10/Materials | Build established: Mutant 428 | -10/Materials | Discovered new exit (range 14) 493 | -10/Materials | Core integrity fell below 50% 556 | -10/Materials | Lost 6 parts (1p2n1u2w) 598 | -10/Materials | Core integrity fell below 20% 623 | -10/Materials | Destroyed by G-34 Mercenary with Small Laser Last Messages --------------- 00603_ K-01 Serf collects debris. 00603_ G-34 Mercenary destroyed. 00603_ K-01 Serf collects debris. 00605_ R-06 Scavenger collects Lgt. Assault Rifle. 00606_ K-01 Serf collects debris. 00606_ R-06 Scavenger collects Flight Unit. 00606_ K-01 Serf collects debris. 00608_ R-06 Scavenger collects Aluminum Leg. 00608_ K-01 Serf collects debris. 00608_ R-06 Scavenger destroyed. 00609_ K-01 Serf collects debris. 00609_ R-06 Scavenger collects Com. Wheel. 00609_ K-01 Serf sends out distress signal. 00609_ K-01 Serf collects debris. 00613_ S-10 Pest suffers critical hit (Destroy). 00613_ S-10 Pest destroyed. 00613_ Switching to secondary target: G-34 Mercenary. 00615_ K-01 Serf collects debris. 00618_ K-01 Serf destroyed. 00619_ K-01 Serf collects debris. Map ----- +----------------------------------------------------+ | ?????????????????????????????????????????????????? | | ?????????????????????????????????????????????????? | | ?????????????????????????????????????????????????? | | ?????????????????????????????????????????????????? | | ?????????????????????????????????????????????????? | | ?????????????????????????????????????????????????? | | ?????????????????????????????????????????????????? | | ?????????????????????????????????????????????????? | | ?????????????????????????????????????????????????? | | ?????????????????????????????????????????????????? | | ?????????????????????????????????????????????????? | | ?????????????????????????????????????????????????? | | ?????????????????????????????????????????????????? | | ???????????######????????????????????????????????? | | ???????????? ???????????????????????????????? | | ??????????? """ ???????????????????????????????? | | ?########## """ ############### ?????????????? | | ?# # """ # ????????????? | | ?# ] # + ????????????? | | ?# # "" # ????????????? | | ?# # Y" # ##########????????????????? | | ?# #! ""?# =#?????#########???????????? | | ?# # ?#s%!####### ######??????? | | ?# #######??# *[%% u * #??????? | | ?# #????????# k!*% %=< !g #??????? | | ?# #????????# = @ = = #??????? | | #######+###????????# #######" !## #??????? | | # ########## # #" !"| "## ???? | | """ # + """ #"""""""## #? | | """ + T # """ ########## [!! #? | | """ # "" # """ #????????# [!! #? | | # #### "" # #????????# ^ [!! #? | | """ # #####??# T" # """ #????????# #? | | """ # #??????# "" # """ #????????? + | | """ # #??????# "" + """ #????????? # | | # #??????# # #????????? """ #? | | ###+# #??????# = # #????????? """ #? | | ### ######?# # #????????? "??? ?? | | # # #?# # #????????? ????????? | | # # #?# #######????????? ????????? | | # # #?# #######???????????????????? | | # # #####+### # #???????????????????? | | # + ## # !#= #???????????????????? | | + # ## # += #???????????????????? | | # # ! ## # =#="T" #???????????????????? | | # # ## + # """ #???????????????????? | | # # ##########+########???????????????????? | | # ######????# #??????????????????????? | | # #?????????# #??????????????????????? | | #####?????????# #??????????????????????? | +----------------------------------------------------+ Best States ------------- Heat Dissipation 25 Energy Generation 10 Energy Capacity 250 Matter Stores 300 Matter Capacity 300 Sight Range 16 Terrain Scan Density 10 Evasion (%) 40 Recoil Reduction 2 Item Schematics ----------------- None Robot Schematics ------------------ None Fabricated ------------ Nothing Alien Tech Used ----------------- None Achievements -------------- None Challenges ------------ None Game ------ Seed GodThrusterAirjet Manual? 0 Play Time 00:07:16 Cumulative 80.1 hours Start 2025.03.03 @ 19:01:10 End 2025.03.03 @ 19:07:03 Sessions 1 Manual Loads 0 Difficulty Rogue Special Mode None Game No. 99 Rogue 92 Adventurer 0 Explorer 7 Win Type - Total 2 Types 2/0/0/0/0/0/0/0/0 Lore% 36 Gallery% 37 Achievement% 36 Wizard Run 0 Options --------- Layout 0 ASCII 0 Keyboard 0 Movement Mouse Keybinds 0 Fullscreen 1 Font 24/Smallcaps Map View 76x50 Zoom Use 0% Tactical HUD 1 Map Filters NONE Filters NONE Steam 1 RUN: 368e5bb0-8820-4d34-8f64-ffd71b66b83c